Workbook

Sheet 0. Overview
C1: Financial Forecast Workbook
C5: This workbook is designed to help you develop a financial forecast
C6: for a new product/service/system
C8: Unlike most standard financial modelling tools, this workbook does not allow you to enter financial information
C9: directly. Rather, it requires you to enter the underlying operational parameters like number of customers
C10: secured each year, unit prices, service fees and installation charges and it then calculates the resulting financial values.
C14: Version 2.1
C15: 2021-07-14
C18: Disclaimer:
C19: The user takes full responsibility for the use of this workbook.
C20: There is no implied or explicit guarantee that this workbook generates
C21: results to accurately reflect the viability of the proposed project.
A25: O. | B25: Overview - Using the Workbook to Produce a Financial Forecast
B27: This workbook consists of four stages to develop a financial forecast for a new product/system/ and any associated service.
B28: Each stage is shown below and is provided in a separate worksheet in this workbook.
B30: Colour legend
C31: Cells to be filled in
C32: Blank cells will be calculated based on inputs of worksheet I-Input Data
C33: Cells out of scope of your project will automatically turn grey
B35: Stage I -- Input Data
B36: Fill in all the requested fields
B38: Stage II -- Estimate Annual Revenue/Turnover
B39: Go to worksheet II-Revenues and check if assumptions are consistent with the model
B41: Stage III -- Estimate Annual Costs
B42: Go to worksheet III-Costs andand check if assumptions are consistent with the model
B44: Stage IV -- Review Resulting Profit & Loss and Cash Flow
B45: Go to worksheet IV-Profit&Loss + Cash Flow to review the forecast.
B47: Note that the worksheet IV. Profit&Loss + Cash Flow uses figures automatically calculated in the Depreciation worksheet.
B48: If the resulting forecast does not seem reasonable, then you should adjust either your assumptions about
B49: revenues, your assumptions about costs or both.
B82: The InCubed FinForecastTool is licensed under the ESA Software Community License – Type 3 - v1.1

Sheet I.Input Data
A1: I. | B1: Input Data | C1: The following numbered tables (e.g. table 0.3.) correspond to the different tables displayed in the Outline Proposal Template of InCubed
B3: Table 28 Cost Breakdown per contractor
B4: Development Cycle | C4: Included in proposed activity? | D4: Start | E4: Conclusion | F4: Company/ Organisation | G4: Status (e.g. University, SME) | H4: Country | I4: Cost kEur | J4: Requested ESA funding (Price) kEur | K4: Requested ESA funding (Price) % of Cost | L4: Source of co-funding | M4: National Delegation Support[1]
B5: InCubed (De-risking) | C5: NO | D5: 2020-04-01 | E5: 2021-04-01 | F5: Prime | G5: Large | I5: 300 | J5: 150 | K5: =IF( I5<> 0, J5/I5,"") -> 0.5 | M5: yes/no/under discussion
F6: Subcontractor 1[2] | G6: SME | K6: =IF( I6<> 0, J6/I6,"") ->  | M6: yes/no/under discussion
F7: Subcontractor 2 | G7: SME | M7: yes/no/under discussion
F8: Subcontractor 3 | G8: SME | M8: yes/no/under discussion
F9: Subcontractor 4 | G9: SME | M9: yes/no/under discussion
F10: Subcontractor 5 | G10: SME | M10: yes/no/under discussion
H11: Total | I11: =SUM(I5:I10) -> 300 | J11: =SUM(J5:J10) -> 150 | K11: =IF( I11<> 0, J11/I11,"") -> 0.5
B12: InCubed (Product) | C12: YES | D12: 2022-01-01 | E12: 2023-06-01 | F12: Prime | G12: SME | I12: 600 | J12: 300 | K12: 0.5 | M12: yes/no/under discussion
F13: Subcontractor 1[2] | G13: SME | I13: 300 | J13: 150 | K13: 0.5 | M13: yes/no/under discussion
F14: Subcontractor 2 | G14: SME | M14: yes/no/under discussion
F15: Subcontractor 3 | G15: SME | M15: yes/no/under discussion
F16: Subcontractor 4 | G16: SME | M16: yes/no/under discussion
F17: Subcontractor 5 | G17: SME | M17: yes/no/under discussion
H18: Total | I18: =SUM(I12:I17) -> 900 | J18: =SUM(J12:J17) -> 450 | K18: 0.5
B19: Grand Total | I19: =I18+I11 -> 1200 | J19: =J18+J11 -> 600
B22: [1] | C22: yes = The National Delegation has been contacted and is in favour of the proposed activity.
C23: no = The National Delegation has not yet been contacted.
C24: under discussion = The National Delegation has been contacted and discussions are ongoing.
B25: [2] | C25: In ESA terms a subcontractor is an activity partner that will take part to the activity in an active way and have a key role (usually is also co-funding the activity). Any supplier just providing external product or external service to the activity in not an ESA subcontractor and shall be listed in table Main cost elements
B29: Max 20 years span (-10 to +10 years wrt commercial launch)
B30: Development Cycle | C30: Select the entity "subject" of this financial forecast | D30: Cost kEUR | E30: Requested ESA Funding (Price) | F30: Requested ESA Funding (Price) | G30: Start | H30: Conclusion | I30: year beginning | J30: Duration | K30: year end | L30: Days in start year | M30: Duration days | N30: Days in end year
E31: kEUR | F31: % of Cost | G31: Mon-YY | H31: Mon-YY | J31: years
B32: =+B5 -> InCubed (De-risking) | C32: Prime | D32: =IF(C5="yes",VLOOKUP(C32,F5:I10,4),0) -> 0 | E32: =IF(C5="yes",VLOOKUP(C32,F5:J10,5),0) -> 0 | F32: =IF( D32<> 0, E32/D32,0) -> 0 | G32: =+IF(C5="YES",D5,"") ->  | H32: =+IF(C5="YES",E5,"") ->  | I32: =IF(OR(G32="",H32=""), 0, YEAR(G32)-YEAR($G$34)) -> 0 | J32: =IF(OR(G32="",H32=""), 0, (H32-G32)/365) -> 0 | K32: =IF(OR(G32="",H32=""), 0, YEAR(H32)-YEAR($G$34)) -> 0 | L32: =IF(OR(G32="",H32=""), 0, DATE(YEAR(G32),12,31)-G32) -> 0 | M32: =IF(OR(G32="",H32=""), 0, H32-G32) -> 0 | N32: =IF(OR(G32="",H32=""), 0, H32-DATE(YEAR(H32)-1,12,31)) -> 0
B33: =+B12 -> InCubed (Product) | C33: Prime | D33: =VLOOKUP(C33,F12:I17,4) -> 600 | E33: =VLOOKUP(C33,F12:J17,5) -> 300 | F33: =IF( D33<> 0, E33/D33,"") -> 0.5 | G33: =+D12 -> 2022-01-01 | H33: =+E12 -> 2023-06-01 | I33: =YEAR(G33)-YEAR($G$34) -> -2 | J33: =+(H33-G33)/365 -> 1.41369863 | K33: =YEAR(H33)-YEAR($G$34) -> -1 | L33: =DATE(YEAR(G33),12,31)-G33 -> 364 | M33: =H33-G33 -> 516 | N33: =H33-DATE(YEAR(H33)-1,12,31) -> 152
B34: Commercial stage | G34: 2024-01-01 | H34: 2029-12-31 | I34: 0 | J34: =+(H34-G34)/365 -> 6.002739726 | K34: =YEAR(H34)-YEAR($G$34) -> 5 | L34: =DATE(YEAR(G34),12,31)-G34 -> 365 | M34: =H34-G34 -> 2191 | N34: =H34-DATE(YEAR(H34)-1,12,31) -> 365
G35: =IF(H33>G34,"WARNING: Be aware that the Commercial Phase is overlapping with the InCubed+ activity, which is in a pre-commercial phase","") -> 
G36: =IF(AND(H32>G33,C12="YES",C5="YES"),"WARNING: Be aware that the Product stage is overlapping with the Technology de-risking stage","") -> 
B37: From this point on all prices are Euro (not kEuro) | G37: =IF(AND(C5="NO", OR(D32<>0,E32<>0)),"WARNING: Be aware that Technology de-risking stage is not included in the activity and the cost/price are not set to 0","") -> 
G38: =IF(AND(C32="NO", OR(G32<>0,H32<>0)),"WARNING: Be aware that Technology de-risking stage is not included in the activity and the start/conclusion dates should be empty","") -> 
B39: II 2.3 Revenue Streams
B41: Note: The table provides 3 different ways of generating revenues from up to 3 different Products, if you need more we suggest to adapt the excel
B42: 1) by selling the product per unit (e.g. for Space segments when an items is sold to a satellite manufacturer, for ground segment when a ground station is sold to a customer, for data segment when an image is sold to a customer)
B43: 2) by charging the installation of each product; the 'Installation charge per unit ' should be used in case a service is offered afterwards with a recurring service fee each year. In case of installation charges when selling a product, without any revenue streams afterwards, these installation charges should be included to the 'Product unit price'.
B44: 3) by a yearly service fee per product (e.g. in an end to end system including satellite, ground segment the EO satellite operator provides advance analytics to a customer asking for a service fee, an analytic service using public EO data)
B46: Figures can be adjusted; if a specific entry is not applicable, put it to 0
B47: Table 0.4 Product Pricing
B48: Product/Services | C48: Product unit price | D48: Product installation charge per unit | E48: Service fee per product per year
B50: Product/Service 1 | C50: 50000 | D50: 0 | E50: 0
B51: Product/Service 2 | C51: 0 | D51: 100 | E51: 18000
B52: Product/Service 3 | C52: 0 | D52: 0 | E52: 0
B53: Churn Rate | D53: 0
B55: II 2.4 Cost Structures
C58: Development Phase(s) | M58: =+G34 -> 2024-01-01 | N58: Commercial Exploitation Phase
B59: Year -> | C59: -10 | D59: -9 | E59: -8 | F59: -7 | G59: -6 | H59: -5 | I59: -4 | J59: -3 | K59: -2 | L59: -1 | M59: 0 | N59: 1 | O59: 2 | P59: 3 | Q59: 4 | R59: 5 | S59: 6 | T59: 7 | U59: 8 | V59: 9 | W59: 10
B60: =+B32 -> InCubed (De-risking) | C60: =IF(OR(C$59<$I$32,C$59>$K$32),0,IF(C$59=$I$32,(IF($I$32=$K$32,$D$32,$D$32*$L$32/$M$32)),IF(C$59=$K$32,($D$32*$N$32/$M$32),($D$32*365.25/$M$32)))) -> 0 | D60: 0 | E60: 0 | F60: 0 | G60: 0 | H60: =IF(OR(H$59<$I$32,H$59>$K$32),0,IF(H$59=$I$32,(IF($I$32=$K$32,$D$32,$D$32*$L$32/$M$32)),IF(H$59=$K$32,($D$32*$N$32/$M$32),($D$32*365.25/$M$32)))) -> 0 | I60: 0 | J60: 0 | K60: 0 | L60: =IF(OR(L$59<$I$32,L$59>$K$32),0,IF(L$59=$I$32,(IF($I$32=$K$32,$D$32,$D$32*$L$32/$M$32)),IF(L$59=$K$32,($D$32*$N$32/$M$32),($D$32*365.25/$M$32)))) -> 0 | M60: =IF(OR(M$59<$I$32,M$59>$K$32),0,IF(M$59=$I$32,(IF($I$32=$K$32,$D$32,$D$32*$L$32/$M$32)),IF(M$59=$K$32,($D$32*$N$32/$M$32),($D$32*365.25/$M$32)))) -> 0 | N60: 0 | O60: 0 | P60: 0 | Q60: 0 | R60: 0 | S60: 0 | T60: 0 | U60: 0 | V60: 0 | W60: 0
B61: =+B33 -> InCubed (Product) | C61: =IF(OR(C$59<$I$33,C$59>$K$33),0,IF(C$59=$I$33,(IF($I$33=$K$33,$D$33,$D$33*$L$33/$M$33)),IF(C$59=$K$33,($D$33*$N$33/$M$33),($D$33*365.25/$M$33)))) -> 0 | D61: 0 | E61: 0 | F61: 0 | G61: =IF(OR(G$59<$I$33,G$59>$K$33),0,IF(G$59=$I$33,(IF($I$33=$K$33,$D$33,$D$33*$L$33/$M$33)),IF(G$59=$K$33,($D$33*$N$33/$M$33),($D$33*365.25/$M$33)))) -> 0 | H61: =IF(OR(H$59<$I$33,H$59>$K$33),0,IF(H$59=$I$33,(IF($I$33=$K$33,$D$33,$D$33*$L$33/$M$33)),IF(H$59=$K$33,($D$33*$N$33/$M$33),($D$33*365.25/$M$33)))) -> 0 | I61: =IF(OR(I$59<$I$33,I$59>$K$33),0,IF(I$59=$I$33,(IF($I$33=$K$33,$D$33,$D$33*$L$33/$M$33)),IF(I$59=$K$33,($D$33*$N$33/$M$33),($D$33*365.25/$M$33)))) -> 0 | J61: =IF(OR(J$59<$I$33,J$59>$K$33),0,IF(J$59=$I$33,(IF($I$33=$K$33,$D$33,$D$33*$L$33/$M$33)),IF(J$59=$K$33,($D$33*$N$33/$M$33),($D$33*365.25/$M$33)))) -> 0 | K61: 423.255814 | L61: 176.744186 | M61: 0 | N61: 0 | O61: 0 | P61: 0 | Q61: 0 | R61: 0 | S61: 0 | T61: 0 | U61: 0 | V61: 0 | W61: 0
B62: Year corrected -> | C62: =+IF(SUM(C60:C61)=0,-1,0) -> -1 | D62: =+IF(SUM(D60:D61)=0,-1,0) -> -1 | E62: -1 | F62: -1 | G62: -1 | H62: -1 | I62: -1 | J62: -1 | K62: 0 | L62: 0 | M62: =+L62+1 -> 1 | N62: =+M62+1 -> 2 | O62: =+N62+1 -> 3 | P62: 4 | Q62: 5 | R62: 6 | S62: 7 | T62: 8 | U62: 9 | V62: 10 | W62: 11
K64: Table 6 Cost of Sales
K65: [Note: In case you do not have detailed cost of sales figure, provide the estimate of the cost of sale per product in the top row.
K66: In case you have detailed cost of sales, fill in the remaining rows and set zero in the top row]
J67: Costs of Sale | K67: Estimated Cost of Sales | M67: =+G34 -> 2024-01-01 | N67: Commercial Exploitation Phase
M68: 0 | N68: 1 | O68: 2 | P68: 3 | Q68: 4 | R68: 5 | S68: 6 | T68: 7 | U68: 8 | V68: 9 | W68: 10
K69: Simplified CoS for product unit | M69: 0
K70: Cost Element N.1 | M70: 20000 | N70: 30000 | O70: 30000 | P70: 30000 | Q70: 30000 | R70: 30000
K71: Cost Element N.2 | M71: 500000 | N71: 600000 | O71: 400000 | P71: 400000 | Q71: 400000 | R71: 400000
K72: Cost Element N.3 | M72: 0 | N72: 0 | O72: 0 | P72: 0 | Q72: 0 | R72: 0
K73: Cost Element N.4 | M73: 0 | N73: 0 | O73: 0 | P73: 0 | Q73: 0 | R73: 0
K75: Table 7 Operational Expenditures
J76: OPEX | K76: Estimated OPEX | M76: =+G34 -> 2024-01-01 | N76: Commercial Exploitation Phase
M77: 0 | N77: 1 | O77: 2 | P77: 3 | Q77: 4 | R77: 5 | S77: 6 | T77: 7 | U77: 8 | V77: 9 | W77: 10
K78: Sales staff cost | M78: 0 | N78: 0 | O78: 0 | P78: 0 | Q78: 0 | R78: 0 | S78: 0 | T78: 0 | U78: 0 | V78: 0 | W78: 0
K79: Uplift | L79: 0.03 | M79: =+M78*$L$79 -> 0 | N79: 0 | O79: 0 | P79: 0 | Q79: 0 | R79: 0 | S79: 0 | T79: 0 | U79: 0 | V79: 0 | W79: 0
K80: Sales staff | M80: 0 | N80: 0 | O80: 0 | P80: 0 | Q80: 0 | R80: 0 | S80: 0 | T80: 0 | U80: 0 | V80: 0 | W80: 0
K81: Marketing staff cost | M81: 0 | N81: 0 | O81: 0 | P81: 0 | Q81: 0 | R81: 0 | S81: 0 | T81: 0 | U81: 0 | V81: 0 | W81: 0
K82: Uplift | L82: 0.25 | M82: =+M81*$L$82 -> 0 | N82: 0 | O82: 0 | P82: 0 | Q82: 0 | R82: 0 | S82: 0 | T82: 0 | U82: 0 | V82: 0 | W82: 0
K83: Marketing staff | M83: 0 | N83: 0 | O83: 0 | P83: 0 | Q83: 0 | R83: 0 | S83: 0 | T83: 0 | U83: 0 | V83: 0 | W83: 0
K84: Admin staff cost | M84: 25000 | N84: 25000 | O84: 25000 | P84: 40000 | Q84: 40000 | R84: 0 | S84: 0 | T84: 0 | U84: 0 | V84: 0 | W84: 0
K85: Uplift | L85: 0.03 | M85: =+M84*$L$85 -> 750 | N85: 750 | O85: 750 | P85: 1200 | Q85: 1200 | R85: 0 | S85: 0 | T85: 0 | U85: 0 | V85: 0 | W85: 0
K86: Admin staff | M86: 0.5 | N86: 0.5 | O86: 0.8 | P86: 1 | Q86: 1 | R86: 0 | S86: 0 | T86: 0 | U86: 0 | V86: 0 | W86: 0
K87: Other Cost N.1 | M87: 0 | N87: 0 | O87: 0 | P87: 0 | Q87: 0 | R87: 0 | S87: 0 | T87: 0 | U87: 0 | V87: 0 | W87: 0
K88: Other Cost N.2 | M88: 0 | N88: 0 | O88: 0 | P88: 0 | Q88: 0 | R88: 0 | S88: 0 | T88: 0 | U88: 0 | V88: 0 | W88: 0
K89: Other Cost N.3 | M89: 0 | N89: 0 | O89: 0 | P89: 0 | Q89: 0 | R89: 0 | S89: 0 | T89: 0 | U89: 0 | V89: 0 | W89: 0
K91: Table 8 Capital Expenditures
J92: CAPEX | K92: Estimated CAPEX | M92: =+$G$34 -> 2024-01-01 | N92: Commercial Exploitation Phase
M93: 0 | N93: 1 | O93: 2 | P93: 3 | Q93: 4 | R93: 5 | S93: 6 | T93: 7 | U93: 8 | V93: 9 | W93: 10
K94: Investment N.1 | M94: 0 | N94: 0 | O94: 0 | P94: 0 | Q94: 0 | R94: 0 | S94: 0 | T94: 0 | U94: 0 | V94: 0 | W94: 0
K95: Investment N.2 | M95: 0 | N95: 0 | O95: 0 | P95: 0 | Q95: 0 | R95: 0 | S95: 0 | T95: 0 | V95: 0 | W95: 0
K96: Lifetime Inv. Above (years) | M96: 5
K97: Investment N.3 | M97: 100000 | N97: 0 | O97: 0 | P97: 0 | Q97: 0 | R97: 0 | S97: 0 | T97: 0 | U97: 0 | V97: 0 | W97: 0
K98: Investment N.4 | M98: 0 | N98: 0 | O98: 0 | P98: 0 | Q98: 0 | R98: 0 | S98: 0 | T98: 0 | U98: 0 | V98: 0 | W98: 0
K99: Lifetime Inv. Above (years) | M99: 7
K102: II 5 Market Analysis
K103: Table 14 Product/service units sold
J104: Sales Volume (Units) | K104: Number of product/service units sold per year | M104: =+$G$34 -> 2024-01-01 | N104: Commercial Exploitation Phase
M105: 0 | N105: 1 | O105: 2 | P105: 3 | Q105: 4 | R105: 5 | S105: 6 | T105: 7 | U105: 8 | V105: 9 | W105: 10
K106: =+B50 -> Product/Service 1 | M106: 1 | N106: 2 | O106: 6 | P106: 5 | Q106: 6 | R106: 5
K107: =+B51 -> Product/Service 2 | M107: 10 | N107: 15 | O107: 18 | P107: 20 | Q107: 20 | R107: 20
K108: =+B52 -> Product/Service 3
B112: Cost of Capital (WACC) | C112: 0.1

Sheet II. Revenues
B2: Result -- Annual Revenues
C4: Product unit price | D4: Product installation charge per unit | E4: Service fee per product per year
B6: =+'I.Input Data'!B50 -> Product/Service 1 | C6: =+'I.Input Data'!C50 -> 50000 | D6: =+'I.Input Data'!D50 -> 0 | E6: =+'I.Input Data'!E50 -> 0
B7: =+'I.Input Data'!B51 -> Product/Service 2 | C7: =+'I.Input Data'!C51 -> 0 | D7: =+'I.Input Data'!D51 -> 100 | E7: =+'I.Input Data'!E51 -> 18000
B8: =+'I.Input Data'!B52 -> Product/Service 3 | C8: =+'I.Input Data'!C52 -> 0 | D8: =+'I.Input Data'!D52 -> 0 | E8: =+'I.Input Data'!E52 -> 0
B11: Estimated Cost of Sales | D11: =+'I.Input Data'!G34 -> 2024-01-01 | E11: Commercial Exploitation Phase
D12: 0 | E12: 1 | F12: 2 | G12: 3 | H12: 4 | I12: 5 | J12: 6 | K12: 7 | L12: 8 | M12: 9 | N12: 10
B13: Cumulative Volume Sales | C13: =+$B$6 -> Product/Service 1 | D13: =+'I.Input Data'!M106 -> 1 | E13: =(D13*(1-'I.Input Data'!$D$53)+'I.Input Data'!N106) -> 3 | F13: =(E13*(1-'I.Input Data'!$D$53)+'I.Input Data'!O106) -> 9 | G13: =(F13*(1-'I.Input Data'!$D$53)+'I.Input Data'!P106) -> 14 | H13: =(G13*(1-'I.Input Data'!$D$53)+'I.Input Data'!Q106) -> 20 | I13: =(H13*(1-'I.Input Data'!$D$53)+'I.Input Data'!R106) -> 25 | J13: =(I13*(1-'I.Input Data'!$D$53)+'I.Input Data'!S106) -> 25 | K13: =(J13*(1-'I.Input Data'!$D$53)+'I.Input Data'!T106) -> 25 | L13: =(K13*(1-'I.Input Data'!$D$53)+'I.Input Data'!U106) -> 25 | M13: =(L13*(1-'I.Input Data'!$D$53)+'I.Input Data'!V106) -> 25 | N13: =(M13*(1-'I.Input Data'!$D$53)+'I.Input Data'!W106) -> 25
C14: =+$B$7 -> Product/Service 2 | D14: =+'I.Input Data'!M107 -> 10 | E14: =(D14*(1-'I.Input Data'!$D$53)+'I.Input Data'!N107) -> 25 | F14: =(E14*(1-'I.Input Data'!$D$53)+'I.Input Data'!O107) -> 43 | G14: =(F14*(1-'I.Input Data'!$D$53)+'I.Input Data'!P107) -> 63 | H14: =(G14*(1-'I.Input Data'!$D$53)+'I.Input Data'!Q107) -> 83 | I14: =(H14*(1-'I.Input Data'!$D$53)+'I.Input Data'!R107) -> 103 | J14: =(I14*(1-'I.Input Data'!$D$53)+'I.Input Data'!S107) -> 103 | K14: =(J14*(1-'I.Input Data'!$D$53)+'I.Input Data'!T107) -> 103 | L14: =(K14*(1-'I.Input Data'!$D$53)+'I.Input Data'!U107) -> 103 | M14: =(L14*(1-'I.Input Data'!$D$53)+'I.Input Data'!V107) -> 103 | N14: =(M14*(1-'I.Input Data'!$D$53)+'I.Input Data'!W107) -> 103
C15: =+$B$8 -> Product/Service 3 | D15: =+'I.Input Data'!M108 -> 0 | E15: =(D15*(1-'I.Input Data'!$D$53)+'I.Input Data'!N108) -> 0 | F15: =(E15*(1-'I.Input Data'!$D$53)+'I.Input Data'!O108) -> 0 | G15: =(F15*(1-'I.Input Data'!$D$53)+'I.Input Data'!P108) -> 0 | H15: =(G15*(1-'I.Input Data'!$D$53)+'I.Input Data'!Q108) -> 0 | I15: =(H15*(1-'I.Input Data'!$D$53)+'I.Input Data'!R108) -> 0 | J15: =(I15*(1-'I.Input Data'!$D$53)+'I.Input Data'!S108) -> 0 | K15: =(J15*(1-'I.Input Data'!$D$53)+'I.Input Data'!T108) -> 0 | L15: =(K15*(1-'I.Input Data'!$D$53)+'I.Input Data'!U108) -> 0 | M15: =(L15*(1-'I.Input Data'!$D$53)+'I.Input Data'!V108) -> 0 | N15: =(M15*(1-'I.Input Data'!$D$53)+'I.Input Data'!W108) -> 0
B16: Product Sales Revenue | C16: =+$B$6 -> Product/Service 1 | D16: ='I.Input Data'!M106*$C$6 -> 50000 | E16: ='I.Input Data'!N106*$C$6 -> 100000 | F16: ='I.Input Data'!O106*$C$6 -> 300000 | G16: ='I.Input Data'!P106*$C$6 -> 250000 | H16: ='I.Input Data'!Q106*$C$6 -> 300000 | I16: ='I.Input Data'!R106*$C$6 -> 250000 | J16: ='I.Input Data'!S106*$C$6 -> 0 | K16: ='I.Input Data'!T106*$C$6 -> 0 | L16: ='I.Input Data'!U106*$C$6 -> 0 | M16: ='I.Input Data'!V106*$C$6 -> 0 | N16: ='I.Input Data'!W106*$C$6 -> 0
C17: =+$B$7 -> Product/Service 2 | D17: ='I.Input Data'!M107*$C$7 -> 0 | E17: ='I.Input Data'!N107*$C$7 -> 0 | F17: ='I.Input Data'!O107*$C$7 -> 0 | G17: ='I.Input Data'!P107*$C$7 -> 0 | H17: ='I.Input Data'!Q107*$C$7 -> 0 | I17: ='I.Input Data'!R107*$C$7 -> 0 | J17: ='I.Input Data'!S107*$C$7 -> 0 | K17: ='I.Input Data'!T107*$C$7 -> 0 | L17: ='I.Input Data'!U107*$C$7 -> 0 | M17: ='I.Input Data'!V107*$C$7 -> 0 | N17: ='I.Input Data'!W107*$C$7 -> 0
C18: =+$B$8 -> Product/Service 3 | D18: ='I.Input Data'!M108*$C$8 -> 0 | E18: ='I.Input Data'!N108*$C$8 -> 0 | F18: ='I.Input Data'!O108*$C$8 -> 0 | G18: ='I.Input Data'!P108*$C$8 -> 0 | H18: ='I.Input Data'!Q108*$C$8 -> 0 | I18: ='I.Input Data'!R108*$C$8 -> 0 | J18: ='I.Input Data'!S108*$C$8 -> 0 | K18: ='I.Input Data'!T108*$C$8 -> 0 | L18: ='I.Input Data'!U108*$C$8 -> 0 | M18: ='I.Input Data'!V108*$C$8 -> 0 | N18: ='I.Input Data'!W108*$C$8 -> 0
C19: Total | D19: =+SUM(D16:D18) -> 50000 | E19: =+SUM(E16:E18) -> 100000 | F19: =+SUM(F16:F18) -> 300000 | G19: =+SUM(G16:G18) -> 250000 | H19: =+SUM(H16:H18) -> 300000 | I19: =+SUM(I16:I18) -> 250000 | J19: 0 | K19: 0 | L19: 0 | M19: 0 | N19: =+SUM(N16:N18) -> 0
B20: Product Installation Revenue | C20: =+$B$6 -> Product/Service 1 | D20: =+'I.Input Data'!M106*$D$6 -> 0 | E20: =+'I.Input Data'!N106*$D$6 -> 0 | F20: =+'I.Input Data'!O106*$D$6 -> 0 | G20: =+'I.Input Data'!P106*$D$6 -> 0 | H20: =+'I.Input Data'!Q106*$D$6 -> 0 | I20: =+'I.Input Data'!R106*$D$6 -> 0 | J20: =+'I.Input Data'!S106*$D$6 -> 0 | K20: =+'I.Input Data'!T106*$D$6 -> 0 | L20: =+'I.Input Data'!U106*$D$6 -> 0 | M20: =+'I.Input Data'!V106*$D$6 -> 0 | N20: =+'I.Input Data'!W106*$D$6 -> 0
C21: =+$B$7 -> Product/Service 2 | D21: =+'I.Input Data'!M107*$D$7 -> 1000 | E21: =+'I.Input Data'!N107*$D$7 -> 1500 | F21: =+'I.Input Data'!O107*$D$7 -> 1800 | G21: =+'I.Input Data'!P107*$D$7 -> 2000 | H21: =+'I.Input Data'!Q107*$D$7 -> 2000 | I21: =+'I.Input Data'!R107*$D$7 -> 2000 | J21: =+'I.Input Data'!S107*$D$7 -> 0 | K21: =+'I.Input Data'!T107*$D$7 -> 0 | L21: =+'I.Input Data'!U107*$D$7 -> 0 | M21: =+'I.Input Data'!V107*$D$7 -> 0 | N21: =+'I.Input Data'!W107*$D$7 -> 0
C22: =+$B$8 -> Product/Service 3 | D22: =+'I.Input Data'!M108*$D$8 -> 0 | E22: =+'I.Input Data'!N108*$D$8 -> 0 | F22: =+'I.Input Data'!O108*$D$8 -> 0 | G22: =+'I.Input Data'!P108*$D$8 -> 0 | H22: =+'I.Input Data'!Q108*$D$8 -> 0 | I22: =+'I.Input Data'!R108*$D$8 -> 0 | J22: =+'I.Input Data'!S108*$D$8 -> 0 | K22: =+'I.Input Data'!T108*$D$8 -> 0 | L22: =+'I.Input Data'!U108*$D$8 -> 0 | M22: =+'I.Input Data'!V108*$D$8 -> 0 | N22: =+'I.Input Data'!W108*$D$8 -> 0
C23: Total | D23: =+SUM(D20:D22) -> 1000 | E23: =+SUM(E20:E22) -> 1500 | F23: 1800 | G23: 2000 | H23: 2000 | I23: 2000 | J23: 0 | K23: 0 | L23: 0 | M23: 0 | N23: 0
B24: Product Service Fee Revenue | C24: =+$B$6 -> Product/Service 1 | D24: =+D13*$E$6 -> 0 | E24: =+E13*$E$6 -> 0 | F24: =+F13*$E$6 -> 0 | G24: =+G13*$E$6 -> 0 | H24: 0 | I24: 0 | J24: 0 | K24: 0 | L24: 0 | M24: =+M13*$E$6 -> 0 | N24: 0
C25: =+$B$7 -> Product/Service 2 | D25: =+D14*$E$7 -> 180000 | E25: =+E14*$E$7 -> 450000 | F25: =+F14*$E$7 -> 774000 | G25: =+G14*$E$7 -> 1134000 | H25: =+H14*$E$7 -> 1494000 | I25: =+I14*$E$7 -> 1854000 | J25: 1854000 | K25: 1854000 | L25: 1854000 | M25: 1854000 | N25: 1854000
C26: =+$B$8 -> Product/Service 3 | D26: =+D15*$E$8 -> 0 | E26: =+E15*$E$8 -> 0 | F26: 0 | G26: 0 | H26: 0 | I26: 0 | J26: 0 | K26: 0 | L26: 0 | M26: 0 | N26: 0
C27: Total | D27: =+SUM(D24:D26) -> 180000 | E27: =+SUM(E24:E26) -> 450000 | F27: 774000 | G27: 1134000 | H27: 1494000 | I27: 1854000 | J27: 1854000 | K27: 1854000 | L27: 1854000 | M27: 1854000 | N27: 1854000
B29: II 5 Market Analysis
B30: Table 15 Served Obtainable Market | D30: =+D11 -> 2024-01-01 | E30: =+E11 -> Commercial Exploitation Phase
A31: Sales Volume | B31: Total Revenues | C31: =+$B$6 -> Product/Service 1 | D31: =+D16+D20+D24 -> 50000 | E31: 100000 | F31: 300000 | G31: 250000 | H31: 300000 | I31: =+I16+I20+I24 -> 250000 | J31: 0 | K31: 0 | L31: 0 | M31: 0 | N31: 0
C32: =+$B$7 -> Product/Service 2 | D32: 181000 | E32: 451500 | F32: 775800 | G32: 1136000 | H32: 1496000 | I32: =+I17+I21+I25 -> 1856000 | J32: 1854000 | K32: 1854000 | L32: 1854000 | M32: 1854000 | N32: 1854000
C33: =+$B$8 -> Product/Service 3 | D33: 0 | E33: 0 | F33: 0 | G33: 0 | H33: 0 | I33: =+I18+I22+I26 -> 0 | J33: 0 | K33: 0 | L33: 0 | M33: 0 | N33: 0
C34: TOTAL | D34: 231000 | E34: 551500 | F34: 1075800 | G34: 1386000 | H34: 1796000 | I34: =+I19+I23+I27 -> 2106000 | J34: 1854000 | K34: 1854000 | L34: 1854000 | M34: 1854000 | N34: =+N19+N23+N27 -> 1854000

Sheet III. Costs
B2: Result -- Annual Expenses
D5: Development Phase(s) | N5: =+'I.Input Data'!G34 -> 2024-01-01 | O5: Commercial Exploitation Phase
D6: =+'I.Input Data'!C59 -> -10 | E6: =+'I.Input Data'!D59 -> -9 | F6: =+'I.Input Data'!E59 -> -8 | G6: =+'I.Input Data'!F59 -> -7 | H6: =+'I.Input Data'!G59 -> -6 | I6: =+'I.Input Data'!H59 -> -5 | J6: =+'I.Input Data'!I59 -> -4 | K6: =+'I.Input Data'!J59 -> -3 | L6: =+'I.Input Data'!K59 -> -2 | M6: =+'I.Input Data'!L59 -> -1 | N6: =+'I.Input Data'!M59 -> 0 | O6: =+'I.Input Data'!N59 -> 1 | P6: =+'I.Input Data'!O59 -> 2 | Q6: =+'I.Input Data'!P59 -> 3 | R6: =+'I.Input Data'!Q59 -> 4 | S6: =+'I.Input Data'!R59 -> 5 | T6: =+'I.Input Data'!S59 -> 6 | U6: =+'I.Input Data'!T59 -> 7 | V6: =+'I.Input Data'!U59 -> 8 | W6: =+'I.Input Data'!V59 -> 9 | X6: =+'I.Input Data'!W59 -> 10
B7: Cost of InCubed Activity | D7: =+SUM('I.Input Data'!C60:C61)*1000 -> 0 | E7: =+SUM('I.Input Data'!D60:D61)*1000 -> 0 | F7: =+SUM('I.Input Data'!E60:E61)*1000 -> 0 | G7: =+SUM('I.Input Data'!F60:F61)*1000 -> 0 | H7: =+SUM('I.Input Data'!G60:G61)*1000 -> 0 | I7: =+SUM('I.Input Data'!H60:H61)*1000 -> 0 | J7: =+SUM('I.Input Data'!I60:I61)*1000 -> 0 | K7: =+SUM('I.Input Data'!J60:J61)*1000 -> 0 | L7: =+SUM('I.Input Data'!K60:K61)*1000 -> 423255.814 | M7: =+SUM('I.Input Data'!L60:L61)*1000 -> 176744.186 | N7: =+SUM('I.Input Data'!M60:M61)*1000 -> 0 | O7: =+SUM('I.Input Data'!N60:N61)*1000 -> 0 | P7: =+SUM('I.Input Data'!O60:O61)*1000 -> 0 | Q7: =+SUM('I.Input Data'!P60:P61)*1000 -> 0 | R7: =+SUM('I.Input Data'!Q60:Q61)*1000 -> 0 | S7: =+SUM('I.Input Data'!R60:R61)*1000 -> 0 | T7: =+SUM('I.Input Data'!S60:S61)*1000 -> 0 | U7: =+SUM('I.Input Data'!T60:T61)*1000 -> 0 | V7: =+SUM('I.Input Data'!U60:U61)*1000 -> 0 | W7: =+SUM('I.Input Data'!V60:V61)*1000 -> 0 | X7: =+SUM('I.Input Data'!W60:W61)*1000 -> 0
B8: ESA Financial support | D8: ='I.Input Data'!C60*'I.Input Data'!$F$32*1000+'I.Input Data'!C61*'I.Input Data'!$F$33*1000 -> 0 | E8: ='I.Input Data'!D60*'I.Input Data'!$F$32*1000+'I.Input Data'!D61*'I.Input Data'!$F$33*1000 -> 0 | F8: ='I.Input Data'!E60*'I.Input Data'!$F$32*1000+'I.Input Data'!E61*'I.Input Data'!$F$33*1000 -> 0 | G8: ='I.Input Data'!F60*'I.Input Data'!$F$32*1000+'I.Input Data'!F61*'I.Input Data'!$F$33*1000 -> 0 | H8: ='I.Input Data'!G60*'I.Input Data'!$F$32*1000+'I.Input Data'!G61*'I.Input Data'!$F$33*1000 -> 0 | I8: ='I.Input Data'!H60*'I.Input Data'!$F$32*1000+'I.Input Data'!H61*'I.Input Data'!$F$33*1000 -> 0 | J8: ='I.Input Data'!I60*'I.Input Data'!$F$32*1000+'I.Input Data'!I61*'I.Input Data'!$F$33*1000 -> 0 | K8: ='I.Input Data'!J60*'I.Input Data'!$F$32*1000+'I.Input Data'!J61*'I.Input Data'!$F$33*1000 -> 0 | L8: ='I.Input Data'!K60*'I.Input Data'!$F$32*1000+'I.Input Data'!K61*'I.Input Data'!$F$33*1000 -> 211627.907 | M8: ='I.Input Data'!L60*'I.Input Data'!$F$32*1000+'I.Input Data'!L61*'I.Input Data'!$F$33*1000 -> 88372.09302 | N8: ='I.Input Data'!M60*'I.Input Data'!$F$32*1000+'I.Input Data'!M61*'I.Input Data'!$F$33*1000 -> 0 | O8: ='I.Input Data'!N60*'I.Input Data'!$F$32*1000+'I.Input Data'!N61*'I.Input Data'!$F$33*1000 -> 0 | P8: ='I.Input Data'!O60*'I.Input Data'!$F$32*1000+'I.Input Data'!O61*'I.Input Data'!$F$33*1000 -> 0 | Q8: ='I.Input Data'!P60*'I.Input Data'!$F$32*1000+'I.Input Data'!P61*'I.Input Data'!$F$33*1000 -> 0 | R8: ='I.Input Data'!Q60*'I.Input Data'!$F$32*1000+'I.Input Data'!Q61*'I.Input Data'!$F$33*1000 -> 0 | S8: ='I.Input Data'!R60*'I.Input Data'!$F$32*1000+'I.Input Data'!R61*'I.Input Data'!$F$33*1000 -> 0 | T8: ='I.Input Data'!S60*'I.Input Data'!$F$32*1000+'I.Input Data'!S61*'I.Input Data'!$F$33*1000 -> 0 | U8: ='I.Input Data'!T60*'I.Input Data'!$F$32*1000+'I.Input Data'!T61*'I.Input Data'!$F$33*1000 -> 0 | V8: ='I.Input Data'!U60*'I.Input Data'!$F$32*1000+'I.Input Data'!U61*'I.Input Data'!$F$33*1000 -> 0 | W8: ='I.Input Data'!V60*'I.Input Data'!$F$32*1000+'I.Input Data'!V61*'I.Input Data'!$F$33*1000 -> 0 | X8: ='I.Input Data'!W60*'I.Input Data'!$F$32*1000+'I.Input Data'!W61*'I.Input Data'!$F$33*1000 -> 0
B9: Simplified Cost of Sales | N9: =+'I.Input Data'!$M$69*('I.Input Data'!M106+'I.Input Data'!M107+'I.Input Data'!M108) -> 0 | O9: =+'I.Input Data'!$M$69*('I.Input Data'!N106+'I.Input Data'!N107+'I.Input Data'!N108) -> 0 | P9: =+'I.Input Data'!$M$69*('I.Input Data'!O106+'I.Input Data'!O107+'I.Input Data'!O108) -> 0 | Q9: =+'I.Input Data'!$M$69*('I.Input Data'!P106+'I.Input Data'!P107+'I.Input Data'!P108) -> 0 | R9: =+'I.Input Data'!$M$69*('I.Input Data'!Q106+'I.Input Data'!Q107+'I.Input Data'!Q108) -> 0 | S9: =+'I.Input Data'!$M$69*('I.Input Data'!R106+'I.Input Data'!R107+'I.Input Data'!R108) -> 0 | T9: =+'I.Input Data'!$M$69*('I.Input Data'!S106+'I.Input Data'!S107+'I.Input Data'!S108) -> 0 | U9: =+'I.Input Data'!$M$69*('I.Input Data'!T106+'I.Input Data'!T107+'I.Input Data'!T108) -> 0 | V9: =+'I.Input Data'!$M$69*('I.Input Data'!U106+'I.Input Data'!U107+'I.Input Data'!U108) -> 0 | W9: =+'I.Input Data'!$M$69*('I.Input Data'!V106+'I.Input Data'!V107+'I.Input Data'!V108) -> 0 | X9: =+'I.Input Data'!$M$69*('I.Input Data'!W106+'I.Input Data'!W107+'I.Input Data'!W108) -> 0
B10: Cost of Sales | C10: =+'I.Input Data'!K70 -> Cost Element N.1 | N10: =+'I.Input Data'!M70 -> 20000 | O10: =+'I.Input Data'!N70 -> 30000 | P10: =+'I.Input Data'!O70 -> 30000 | Q10: =+'I.Input Data'!P70 -> 30000 | R10: =+'I.Input Data'!Q70 -> 30000 | S10: =+'I.Input Data'!R70 -> 30000 | T10: =+'I.Input Data'!S70 -> 0 | U10: =+'I.Input Data'!T70 -> 0 | V10: =+'I.Input Data'!U70 -> 0 | W10: =+'I.Input Data'!V70 -> 0 | X10: =+'I.Input Data'!W70 -> 0
C11: =+'I.Input Data'!K71 -> Cost Element N.2 | N11: =+'I.Input Data'!M71 -> 500000 | O11: =+'I.Input Data'!N71 -> 600000 | P11: =+'I.Input Data'!O71 -> 400000 | Q11: =+'I.Input Data'!P71 -> 400000 | R11: =+'I.Input Data'!Q71 -> 400000 | S11: =+'I.Input Data'!R71 -> 400000 | T11: =+'I.Input Data'!S71 -> 0 | U11: =+'I.Input Data'!T71 -> 0 | V11: =+'I.Input Data'!U71 -> 0 | W11: =+'I.Input Data'!V71 -> 0 | X11: =+'I.Input Data'!W71 -> 0
C12: =+'I.Input Data'!K72 -> Cost Element N.3 | N12: =+'I.Input Data'!M72 -> 0 | O12: =+'I.Input Data'!N72 -> 0 | P12: =+'I.Input Data'!O72 -> 0 | Q12: =+'I.Input Data'!P72 -> 0 | R12: =+'I.Input Data'!Q72 -> 0 | S12: =+'I.Input Data'!R72 -> 0 | T12: =+'I.Input Data'!S72 -> 0 | U12: =+'I.Input Data'!T72 -> 0 | V12: =+'I.Input Data'!U72 -> 0 | W12: =+'I.Input Data'!V72 -> 0 | X12: =+'I.Input Data'!W72 -> 0
C13: =+'I.Input Data'!K73 -> Cost Element N.4 | N13: =+'I.Input Data'!M73 -> 0 | O13: =+'I.Input Data'!N73 -> 0 | P13: =+'I.Input Data'!O73 -> 0 | Q13: =+'I.Input Data'!P73 -> 0 | R13: =+'I.Input Data'!Q73 -> 0 | S13: =+'I.Input Data'!R73 -> 0 | T13: =+'I.Input Data'!S73 -> 0 | U13: =+'I.Input Data'!T73 -> 0 | V13: =+'I.Input Data'!U73 -> 0 | W13: =+'I.Input Data'!V73 -> 0 | X13: =+'I.Input Data'!W73 -> 0
B14: OPEX | C14: Sales | N14: =('I.Input Data'!M78+'I.Input Data'!M79)*'I.Input Data'!M80 -> 0 | O14: =('I.Input Data'!N78+'I.Input Data'!N79)*'I.Input Data'!N80 -> 0 | P14: =('I.Input Data'!O78+'I.Input Data'!O79)*'I.Input Data'!O80 -> 0 | Q14: =('I.Input Data'!P78+'I.Input Data'!P79)*'I.Input Data'!P80 -> 0 | R14: =('I.Input Data'!Q78+'I.Input Data'!Q79)*'I.Input Data'!Q80 -> 0 | S14: =('I.Input Data'!R78+'I.Input Data'!R79)*'I.Input Data'!R80 -> 0 | T14: =('I.Input Data'!S78+'I.Input Data'!S79)*'I.Input Data'!S80 -> 0 | U14: =('I.Input Data'!T78+'I.Input Data'!T79)*'I.Input Data'!T80 -> 0 | V14: =('I.Input Data'!U78+'I.Input Data'!U79)*'I.Input Data'!U80 -> 0 | W14: =('I.Input Data'!V78+'I.Input Data'!V79)*'I.Input Data'!V80 -> 0 | X14: =('I.Input Data'!W78+'I.Input Data'!W79)*'I.Input Data'!W80 -> 0
C15: Marketing | N15: =+('I.Input Data'!M81+'I.Input Data'!M82)*'I.Input Data'!M83 -> 0 | O15: =+('I.Input Data'!N81+'I.Input Data'!N82)*'I.Input Data'!N83 -> 0 | P15: =+('I.Input Data'!O81+'I.Input Data'!O82)*'I.Input Data'!O83 -> 0 | Q15: =+('I.Input Data'!P81+'I.Input Data'!P82)*'I.Input Data'!P83 -> 0 | R15: =+('I.Input Data'!Q81+'I.Input Data'!Q82)*'I.Input Data'!Q83 -> 0 | S15: =+('I.Input Data'!R81+'I.Input Data'!R82)*'I.Input Data'!R83 -> 0 | T15: =+('I.Input Data'!S81+'I.Input Data'!S82)*'I.Input Data'!S83 -> 0 | U15: =+('I.Input Data'!T81+'I.Input Data'!T82)*'I.Input Data'!T83 -> 0 | V15: =+('I.Input Data'!U81+'I.Input Data'!U82)*'I.Input Data'!U83 -> 0 | W15: =+('I.Input Data'!V81+'I.Input Data'!V82)*'I.Input Data'!V83 -> 0 | X15: =+('I.Input Data'!W81+'I.Input Data'!W82)*'I.Input Data'!W83 -> 0
C16: Admin | N16: =+('I.Input Data'!M84+'I.Input Data'!M85)*'I.Input Data'!M86 -> 12875 | O16: =+('I.Input Data'!N84+'I.Input Data'!N85)*'I.Input Data'!N86 -> 12875 | P16: =+('I.Input Data'!O84+'I.Input Data'!O85)*'I.Input Data'!O86 -> 20600 | Q16: =+('I.Input Data'!P84+'I.Input Data'!P85)*'I.Input Data'!P86 -> 41200 | R16: =+('I.Input Data'!Q84+'I.Input Data'!Q85)*'I.Input Data'!Q86 -> 41200 | S16: =+('I.Input Data'!R84+'I.Input Data'!R85)*'I.Input Data'!R86 -> 0 | T16: =+('I.Input Data'!S84+'I.Input Data'!S85)*'I.Input Data'!S86 -> 0 | U16: =+('I.Input Data'!T84+'I.Input Data'!T85)*'I.Input Data'!T86 -> 0 | V16: =+('I.Input Data'!U84+'I.Input Data'!U85)*'I.Input Data'!U86 -> 0 | W16: =+('I.Input Data'!V84+'I.Input Data'!V85)*'I.Input Data'!V86 -> 0 | X16: =+('I.Input Data'!W84+'I.Input Data'!W85)*'I.Input Data'!W86 -> 0
C17: =+'I.Input Data'!K87 -> Other Cost N.1 | N17: =+'I.Input Data'!M87 -> 0 | O17: =+'I.Input Data'!N87 -> 0 | P17: =+'I.Input Data'!O87 -> 0 | Q17: =+'I.Input Data'!P87 -> 0 | R17: =+'I.Input Data'!Q87 -> 0 | S17: =+'I.Input Data'!R87 -> 0 | T17: =+'I.Input Data'!S87 -> 0 | U17: =+'I.Input Data'!T87 -> 0 | V17: =+'I.Input Data'!U87 -> 0 | W17: =+'I.Input Data'!V87 -> 0 | X17: =+'I.Input Data'!W87 -> 0
C18: =+'I.Input Data'!K88 -> Other Cost N.2 | N18: =+'I.Input Data'!M88 -> 0 | O18: =+'I.Input Data'!N88 -> 0 | P18: =+'I.Input Data'!O88 -> 0 | Q18: =+'I.Input Data'!P88 -> 0 | R18: =+'I.Input Data'!Q88 -> 0 | S18: =+'I.Input Data'!R88 -> 0 | T18: =+'I.Input Data'!S88 -> 0 | U18: =+'I.Input Data'!T88 -> 0 | V18: =+'I.Input Data'!U88 -> 0 | W18: =+'I.Input Data'!V88 -> 0 | X18: =+'I.Input Data'!W88 -> 0
C19: =+'I.Input Data'!K89 -> Other Cost N.3 | N19: =+'I.Input Data'!M89 -> 0 | O19: =+'I.Input Data'!N89 -> 0 | P19: =+'I.Input Data'!O89 -> 0 | Q19: =+'I.Input Data'!P89 -> 0 | R19: =+'I.Input Data'!Q89 -> 0 | S19: =+'I.Input Data'!R89 -> 0 | T19: =+'I.Input Data'!S89 -> 0 | U19: =+'I.Input Data'!T89 -> 0 | V19: =+'I.Input Data'!U89 -> 0 | W19: =+'I.Input Data'!V89 -> 0 | X19: =+'I.Input Data'!W89 -> 0
C20: =CONCATENATE(+'I.Input Data'!K94," dep.",+'I.Input Data'!$M$96,"y") -> Investment N.1 dep.5y | N20: =+'I.Input Data'!M94 -> 0 | O20: =+'I.Input Data'!N94 -> 0 | P20: =+'I.Input Data'!O94 -> 0 | Q20: =+'I.Input Data'!P94 -> 0 | R20: =+'I.Input Data'!Q94 -> 0 | S20: =+'I.Input Data'!R94 -> 0 | T20: =+'I.Input Data'!S94 -> 0 | U20: =+'I.Input Data'!T94 -> 0 | V20: =+'I.Input Data'!U94 -> 0 | W20: =+'I.Input Data'!V94 -> 0 | X20: =+'I.Input Data'!W94 -> 0
C21: =CONCATENATE(+'I.Input Data'!K95," dep.",+'I.Input Data'!$M$96,"y") -> Investment N.2 dep.5y | N21: =+'I.Input Data'!M95 -> 0 | O21: =+'I.Input Data'!N95 -> 0 | P21: =+'I.Input Data'!O95 -> 0 | Q21: =+'I.Input Data'!P95 -> 0 | R21: =+'I.Input Data'!Q95 -> 0 | S21: =+'I.Input Data'!R95 -> 0 | T21: =+'I.Input Data'!S95 -> 0 | U21: =+'I.Input Data'!T95 -> 0 | V21: =+'I.Input Data'!U95 -> 0 | W21: =+'I.Input Data'!V95 -> 0 | X21: =+'I.Input Data'!W95 -> 0
C22: =CONCATENATE("Total investment ",+'I.Input Data'!$M$96,"y") -> Total investment 5y | N22: =+SUM(N20:N21) -> 0 | O22: =+SUM(O20:O21) -> 0 | P22: =+SUM(P20:P21) -> 0 | Q22: =+SUM(Q20:Q21) -> 0 | R22: =+SUM(R20:R21) -> 0 | S22: =+SUM(S20:S21) -> 0 | T22: 0 | U22: 0 | V22: 0 | W22: 0 | X22: 0
C23: =CONCATENATE(+'I.Input Data'!K97," dep.",+'I.Input Data'!$M$99,"y") -> Investment N.3 dep.7y | N23: =+'I.Input Data'!M97 -> 100000 | O23: =+'I.Input Data'!N97 -> 0 | P23: =+'I.Input Data'!O97 -> 0 | Q23: =+'I.Input Data'!P97 -> 0 | R23: =+'I.Input Data'!Q97 -> 0 | S23: =+'I.Input Data'!R97 -> 0 | T23: =+'I.Input Data'!S97 -> 0 | U23: =+'I.Input Data'!T97 -> 0 | V23: =+'I.Input Data'!U97 -> 0 | W23: =+'I.Input Data'!V97 -> 0 | X23: =+'I.Input Data'!W97 -> 0
C24: =CONCATENATE(+'I.Input Data'!K98," dep.",+'I.Input Data'!$M$99,"y") -> Investment N.4 dep.7y | N24: =+'I.Input Data'!M98 -> 0 | O24: =+'I.Input Data'!N98 -> 0 | P24: =+'I.Input Data'!O98 -> 0 | Q24: =+'I.Input Data'!P98 -> 0 | R24: =+'I.Input Data'!Q98 -> 0 | S24: =+'I.Input Data'!R98 -> 0 | T24: =+'I.Input Data'!S98 -> 0 | U24: =+'I.Input Data'!T98 -> 0 | V24: =+'I.Input Data'!U98 -> 0 | W24: =+'I.Input Data'!V98 -> 0 | X24: =+'I.Input Data'!W98 -> 0
C25: =CONCATENATE("Total investment ",+'I.Input Data'!$M$99,"y") -> Total investment 7y | N25: =+SUM(N23:N24) -> 100000 | O25: =+SUM(O23:O24) -> 0 | P25: =+SUM(P23:P24) -> 0 | Q25: =+SUM(Q23:Q24) -> 0 | R25: =+SUM(R23:R24) -> 0 | S25: =+SUM(S23:S24) -> 0 | T25: 0 | U25: 0 | V25: 0 | W25: 0 | X25: 0

Sheet IV. Profit&Loss + Cash Flow
A1: IV. | B1: Stage IV - Profit & Loss and Cash Flow Statement Calculation
B3: In this worksheet the Profit and Loss (P&L) statement and a simplified version of the cash flow statement are presented. No input from your side is required except for the Cost of Capital (WACC). The Discounted Cash Flow (DCF) method is used to evaluate the project.
B4: II 7 Financial indicators
B5: Table 16 Financial Indicators Table
B6: Cost of Capital (WACC) | C6: =+'I.Input Data'!C112 -> 0.1
A7: PROFIT & LOSS | D7: Development Phase(s) | N7: =+'I.Input Data'!G34 -> 2024-01-01 | O7: Commercial Exploitation Phase | Z7: WITH ESA
C8: Year -> | D8: =+'I.Input Data'!C62 -> -1 | E8: =+'I.Input Data'!D62 -> -1 | F8: =+'I.Input Data'!E62 -> -1 | G8: =+'I.Input Data'!F62 -> -1 | H8: =+'I.Input Data'!G62 -> -1 | I8: =+'I.Input Data'!H62 -> -1 | J8: =+'I.Input Data'!I62 -> -1 | K8: =+'I.Input Data'!J62 -> -1 | L8: =+'I.Input Data'!K62 -> 0 | M8: =+'I.Input Data'!L62 -> 0 | N8: =+'I.Input Data'!M62 -> 1 | O8: =+'I.Input Data'!N62 -> 2 | P8: =+'I.Input Data'!O62 -> 3 | Q8: =+'I.Input Data'!P62 -> 4 | R8: =+'I.Input Data'!Q62 -> 5 | S8: =+'I.Input Data'!R62 -> 6 | T8: =+'I.Input Data'!S62 -> 7 | U8: =+'I.Input Data'!T62 -> 8 | V8: =+'I.Input Data'!U62 -> 9 | W8: =+'I.Input Data'!V62 -> 10 | X8: =+'I.Input Data'!W62 -> 11 | Y8: Pay Back | Z8: =CONCATENATE("year ",COUNTIF(INDIRECT(SUPPORT!$D$33),"<0")) -> year 4
B9: Revenues | C9: =+'II. Revenues'!B16 -> Product Sales Revenue | N9: =+'II. Revenues'!D19 -> 50000 | O9: =+'II. Revenues'!E19 -> 100000 | P9: =+'II. Revenues'!F19 -> 300000 | Q9: =+'II. Revenues'!G19 -> 250000 | R9: =+'II. Revenues'!H19 -> 300000 | S9: =+'II. Revenues'!I19 -> 250000 | T9: =+'II. Revenues'!J19 -> 0 | U9: =+'II. Revenues'!K19 -> 0 | V9: =+'II. Revenues'!L19 -> 0 | W9: =+'II. Revenues'!M19 -> 0 | X9: =+'II. Revenues'!N19 -> 0 | Y9: IRR | Z9: =IF(SUM(INDIRECT(SUPPORT!$D$34))=0,0,IRR(INDIRECT(SUPPORT!$D$34))) -> 0.7285368671
C10: =+'II. Revenues'!B20 -> Product Installation Revenue | N10: =+'II. Revenues'!D23 -> 1000 | O10: =+'II. Revenues'!E23 -> 1500 | P10: =+'II. Revenues'!F23 -> 1800 | Q10: =+'II. Revenues'!G23 -> 2000 | R10: =+'II. Revenues'!H23 -> 2000 | S10: =+'II. Revenues'!I23 -> 2000 | T10: =+'II. Revenues'!J23 -> 0 | U10: =+'II. Revenues'!K23 -> 0 | V10: =+'II. Revenues'!L23 -> 0 | W10: =+'II. Revenues'!M23 -> 0 | X10: =+'II. Revenues'!N23 -> 0 | Y10: NPV | Z10: =NPV($C$6,INDIRECT(SUPPORT!$D$35))+INDIRECT(SUPPORT!$D$36) -> 2258456.776
C11: =+'II. Revenues'!B24 -> Product Service Fee Revenue | N11: =+'II. Revenues'!D27 -> 180000 | O11: =+'II. Revenues'!E27 -> 450000 | P11: =+'II. Revenues'!F27 -> 774000 | Q11: =+'II. Revenues'!G27 -> 1134000 | R11: =+'II. Revenues'!H27 -> 1494000 | S11: =+'II. Revenues'!I27 -> 1854000 | T11: =+'II. Revenues'!J27 -> 1854000 | U11: =+'II. Revenues'!K27 -> 1854000 | V11: =+'II. Revenues'!L27 -> 1854000 | W11: =+'II. Revenues'!M27 -> 1854000 | X11: =+'II. Revenues'!N27 -> 1854000
C12: =+'II. Revenues'!B31 -> Total Revenues | N12: =+SUM(N9:N11) -> 231000 | O12: =+SUM(O9:O11) -> 551500 | P12: 1075800 | Q12: 1386000 | R12: 1796000 | S12: 2106000 | T12: 1854000 | U12: 1854000 | V12: 1854000 | W12: 1854000 | X12: 1854000
B13: Expenses | C13: =+'III. Costs'!B10 -> Cost of Sales | N13: =+SUM('III. Costs'!N9:N13) -> 520000 | O13: =+SUM('III. Costs'!O9:O13) -> 630000 | P13: =+SUM('III. Costs'!P9:P13) -> 430000 | Q13: =+SUM('III. Costs'!Q9:Q13) -> 430000 | R13: =+SUM('III. Costs'!R9:R13) -> 430000 | S13: =+SUM('III. Costs'!S9:S13) -> 430000 | T13: =+SUM('III. Costs'!T9:T13) -> 0 | U13: =+SUM('III. Costs'!U9:U13) -> 0 | V13: =+SUM('III. Costs'!V9:V13) -> 0 | W13: =+SUM('III. Costs'!W9:W13) -> 0 | X13: =+SUM('III. Costs'!X9:X13) -> 0
C14: =+'III. Costs'!C14 -> Sales | N14: =+'III. Costs'!N14 -> 0 | O14: =+'III. Costs'!O14 -> 0 | P14: =+'III. Costs'!P14 -> 0 | Q14: =+'III. Costs'!Q14 -> 0 | R14: =+'III. Costs'!R14 -> 0 | S14: =+'III. Costs'!S14 -> 0 | T14: =+'III. Costs'!T14 -> 0 | U14: =+'III. Costs'!U14 -> 0 | V14: =+'III. Costs'!V14 -> 0 | W14: =+'III. Costs'!W14 -> 0 | X14: =+'III. Costs'!X14 -> 0 | Z14: WITHOUT ESA
C15: =+'III. Costs'!C15 -> Marketing | N15: =+'III. Costs'!N15 -> 0 | O15: =+'III. Costs'!O15 -> 0 | P15: =+'III. Costs'!P15 -> 0 | Q15: =+'III. Costs'!Q15 -> 0 | R15: =+'III. Costs'!R15 -> 0 | S15: =+'III. Costs'!S15 -> 0 | T15: =+'III. Costs'!T15 -> 0 | U15: =+'III. Costs'!U15 -> 0 | V15: =+'III. Costs'!V15 -> 0 | W15: =+'III. Costs'!W15 -> 0 | X15: =+'III. Costs'!X15 -> 0 | Y15: Pay Back | Z15: =CONCATENATE("year ",COUNTIF(INDIRECT(SUPPORT!$D$28),"<0")) -> year 4
C16: =+'III. Costs'!C16 -> Admin | N16: =+'III. Costs'!N16 -> 12875 | O16: =+'III. Costs'!O16 -> 12875 | P16: =+'III. Costs'!P16 -> 20600 | Q16: =+'III. Costs'!Q16 -> 41200 | R16: =+'III. Costs'!R16 -> 41200 | S16: =+'III. Costs'!S16 -> 0 | T16: =+'III. Costs'!T16 -> 0 | U16: =+'III. Costs'!U16 -> 0 | V16: =+'III. Costs'!V16 -> 0 | W16: =+'III. Costs'!W16 -> 0 | X16: =+'III. Costs'!X16 -> 0 | Y16: IRR | Z16: =IF(SUM(INDIRECT(SUPPORT!$D$29))=0,0,IRR(INDIRECT(SUPPORT!$D$29))) -> 0.6269196807
C17: Other Opex | N17: =+'III. Costs'!N17+'III. Costs'!N18+'III. Costs'!N19 -> 0 | O17: =+'III. Costs'!O17+'III. Costs'!O18+'III. Costs'!O19 -> 0 | P17: =+'III. Costs'!P17+'III. Costs'!P18+'III. Costs'!P19 -> 0 | Q17: =+'III. Costs'!Q17+'III. Costs'!Q18+'III. Costs'!Q19 -> 0 | R17: =+'III. Costs'!R17+'III. Costs'!R18+'III. Costs'!R19 -> 0 | S17: =+'III. Costs'!S17+'III. Costs'!S18+'III. Costs'!S19 -> 0 | T17: =+'III. Costs'!T17+'III. Costs'!T18+'III. Costs'!T19 -> 0 | U17: =+'III. Costs'!U17+'III. Costs'!U18+'III. Costs'!U19 -> 0 | V17: =+'III. Costs'!V17+'III. Costs'!V18+'III. Costs'!V19 -> 0 | W17: =+'III. Costs'!W17+'III. Costs'!W18+'III. Costs'!W19 -> 0 | X17: =+'III. Costs'!X17+'III. Costs'!X18+'III. Costs'!X19 -> 0 | Y17: NPV | Z17: =NPV($C$6,INDIRECT(SUPPORT!$D$30))+INDIRECT(SUPPORT!$D$31) -> 2170084.683
B18: Expenses R&D | C18: Cost of Development Phases | D18: =+'III. Costs'!D7 -> 0 | E18: =+'III. Costs'!E7 -> 0 | F18: =+'III. Costs'!F7 -> 0 | G18: =+'III. Costs'!G7 -> 0 | H18: =+'III. Costs'!H7 -> 0 | I18: =+'III. Costs'!I7 -> 0 | J18: =+'III. Costs'!J7 -> 0 | K18: =+'III. Costs'!K7 -> 0 | L18: =+'III. Costs'!L7 -> 423255.814 | M18: =+'III. Costs'!M7 -> 176744.186 | N18: =+'III. Costs'!N7 -> 0 | O18: =+'III. Costs'!O7 -> 0 | P18: =+'III. Costs'!P7 -> 0 | Q18: =+'III. Costs'!Q7 -> 0 | R18: =+'III. Costs'!R7 -> 0 | S18: =+'III. Costs'!S7 -> 0 | T18: =+'III. Costs'!T7 -> 0 | U18: =+'III. Costs'!U7 -> 0 | V18: =+'III. Costs'!V7 -> 0 | W18: =+'III. Costs'!W7 -> 0 | X18: =+'III. Costs'!X7 -> 0
C19: ESA Financial support | D19: =-'III. Costs'!D8 -> 0 | E19: =-'III. Costs'!E8 -> 0 | F19: =-'III. Costs'!F8 -> 0 | G19: =-'III. Costs'!G8 -> 0 | H19: =-'III. Costs'!H8 -> 0 | I19: =-'III. Costs'!I8 -> 0 | J19: =-'III. Costs'!J8 -> 0 | K19: =-'III. Costs'!K8 -> 0 | L19: =-'III. Costs'!L8 -> -211627.907 | M19: =-'III. Costs'!M8 -> -88372.09302 | N19: =-+'III. Costs'!N8 -> 0 | O19: =-+'III. Costs'!O8 -> 0 | P19: =-+'III. Costs'!P8 -> 0 | Q19: =-+'III. Costs'!Q8 -> 0 | R19: =-+'III. Costs'!R8 -> 0 | S19: =-+'III. Costs'!S8 -> 0 | T19: =-+'III. Costs'!T8 -> 0 | U19: =-+'III. Costs'!U8 -> 0 | V19: =-+'III. Costs'!V8 -> 0 | W19: =-+'III. Costs'!W8 -> 0 | X19: =-+'III. Costs'!X8 -> 0
C20: R&D (net) | D20: =+D18+D19 -> 0 | E20: =+E18+E19 -> 0 | F20: 0 | G20: 0 | H20: 0 | I20: 0 | J20: =+J18+J19 -> 0 | K20: =+K18+K19 -> 0 | L20: =+L18+L19 -> 211627.907 | M20: =+M18+M19 -> 88372.09302 | N20: =+N18+N19 -> 0 | O20: =+O18+O19 -> 0 | P20: 0 | Q20: 0 | R20: 0 | S20: =+S18+S19 -> 0 | T20: 0 | U20: 0 | V20: 0 | W20: 0 | X20: 0
B21: Total Expenses | C21: Total Expenses (w/o ESA) | D21: =+SUM(D13:D17)+D18 -> 0 | E21: 0 | F21: 0 | G21: 0 | H21: 0 | I21: 0 | J21: 0 | K21: 0 | L21: 423255.814 | M21: 176744.186 | N21: 532875 | O21: 642875 | P21: 450600 | Q21: 471200 | R21: 471200 | S21: 430000 | T21: 0 | U21: 0 | V21: 0 | W21: 0 | X21: 0
C22: Total Expenses (with ESA) | D22: =+SUM(D13:D17)+D20 -> 0 | E22: 0 | F22: 0 | G22: 0 | H22: 0 | I22: 0 | J22: 0 | K22: 0 | L22: 211627.907 | M22: 88372.09302 | N22: 532875 | O22: 642875 | P22: 450600 | Q22: 471200 | R22: 471200 | S22: 430000 | T22: 0 | U22: 0 | V22: 0 | W22: 0 | X22: 0
B23: EBITDA (with ESA support) | C23: EBITDA | D23: =+D12-D22 -> 0 | E23: 0 | F23: 0 | G23: 0 | H23: 0 | I23: 0 | J23: 0 | K23: 0 | L23: -211627.907 | M23: -88372.09302 | N23: -301875 | O23: -91375 | P23: 625200 | Q23: 914800 | R23: 1324800 | S23: 1676000 | T23: 1854000 | U23: 1854000 | V23: 1854000 | W23: 1854000 | X23: 1854000
C24: EBITDA Margin | D24: =IF(D12=0,0,D23/D12) -> 0 | E24: 0 | F24: 0 | G24: 0 | H24: 0 | I24: 0 | J24: 0 | K24: 0 | L24: 0 | M24: 0 | N24: -1.306818182 | O24: -0.1656844968 | P24: 0.5811489124 | Q24: 0.66002886 | R24: 0.7376391982 | S24: 0.7958214625 | T24: =IF(T12=0,0,T23/T12) -> 1 | U24: 1 | V24: 1 | W24: 1 | X24: 1
B25: CAPEX | C25: Depreciation | N25: =+Depreciation!F61 -> 14285.71429 | O25: =+Depreciation!G61 -> 14285.71429 | P25: =+Depreciation!H61 -> 14285.71429 | Q25: =+Depreciation!I61 -> 14285.71429 | R25: =+Depreciation!J61 -> 14285.71429 | S25: =+Depreciation!K61 -> 14285.71429 | T25: =+Depreciation!L61 -> 14285.71429 | U25: =+Depreciation!M61 -> 0 | V25: =+Depreciation!N61 -> 0 | W25: =+Depreciation!O61 -> 0 | X25: =+Depreciation!P61 -> 0
B26: Operating Profit (EBIT) (with ESA support) | C26: EBIT | D26: =+D23-D25 -> 0 | E26: =+E23-E25 -> 0 | F26: 0 | G26: 0 | H26: 0 | I26: 0 | J26: 0 | K26: 0 | L26: -211627.907 | M26: -88372.09302 | N26: -316160.7143 | O26: =+O23-O25 -> -105660.7143 | P26: 610914.2857 | Q26: 900514.2857 | R26: 1310514.286 | S26: 1661714.286 | T26: 1839714.286 | U26: 1854000 | V26: 1854000 | W26: 1854000 | X26: 1854000
C27: EBIT Margin | D27: =IF(D12=0,0,D26/D12) -> 0 | E27: 0 | F27: 0 | G27: 0 | H27: 0 | I27: 0 | J27: 0 | K27: 0 | L27: 0 | M27: 0 | N27: -1.368661101 | O27: -0.1915878772 | P27: 0.5678697581 | Q27: 0.6497217069 | R27: 0.7296850143 | S27: 0.7890381224 | T27: 0.9922946525 | U27: 1 | V27: 1 | W27: 1 | X27: 1
A28: PRELIMINARY SIMPLIFIED CASH FLOW | C28: plus Depreciation | D28: =+D26+D25 -> 0 | E28: 0 | F28: 0 | G28: 0 | H28: 0 | I28: 0 | J28: 0 | K28: 0 | L28: -211627.907 | M28: -88372.09302 | N28: =+N26+N25 -> -301875 | O28: =+O26+O25 -> -91375 | P28: 625200 | Q28: 914800 | R28: 1324800 | S28: 1676000 | T28: 1854000 | U28: 1854000 | V28: 1854000 | W28: 1854000 | X28: 1854000
C29: less total CAPEX | N29: =-('III. Costs'!N22+'III. Costs'!N25) -> -100000 | O29: =-('III. Costs'!O22+'III. Costs'!O25) -> 0 | P29: =-('III. Costs'!P22+'III. Costs'!P25) -> 0 | Q29: =-('III. Costs'!Q22+'III. Costs'!Q25) -> 0 | R29: =-('III. Costs'!R22+'III. Costs'!R25) -> 0 | S29: =-('III. Costs'!S22+'III. Costs'!S25) -> 0 | T29: =-('III. Costs'!T22+'III. Costs'!T25) -> 0 | U29: =-('III. Costs'!U22+'III. Costs'!U25) -> 0 | V29: =-('III. Costs'!V22+'III. Costs'!V25) -> 0 | W29: =-('III. Costs'!W22+'III. Costs'!W25) -> 0 | X29: =-('III. Costs'!X22+'III. Costs'!X25) -> 0
C30: less change in working capital | N30: =-(N12-M12)*0.05 -> -11550 | O30: -16025 | P30: -26215 | Q30: -15510 | R30: -20500 | S30: -15500 | T30: 12600 | U30: 0 | V30: 0 | W30: 0 | X30: 0
B31: With ESA Financial Support | C31: Free Cash Flow with ESA | D31: =+D28+D29+D30 -> 0 | E31: 0 | F31: 0 | G31: 0 | H31: 0 | I31: 0 | J31: 0 | K31: 0 | L31: -211627.907 | M31: -88372.09302 | N31: -413425 | O31: =+O28+O29+O30 -> -107400 | P31: 598985 | Q31: 899290 | R31: 1304300 | S31: 1660500 | T31: 1866600 | U31: 1854000 | V31: 1854000 | W31: 1854000 | X31: 1854000
C32: Cumulative Free Cash Flow | D32: =+D31 -> 0 | E32: =+E31+D32 -> 0 | F32: =+F31+E32 -> 0 | G32: 0 | H32: 0 | I32: 0 | J32: 0 | K32: 0 | L32: =+L31+K32 -> -211627.907 | M32: =+M31+L32 -> -300000 | N32: =+N31+M32 -> -713425 | O32: =+O31+N32 -> -820825 | P32: -221840 | Q32: 677450 | R32: 1981750 | S32: 3642250 | T32: 5508850 | U32: 7362850 | V32: 9216850 | W32: 11070850 | X32: 12924850
C33: Discounted Cash Flow with ESA | D33: =IF((D8=-1),0,+(D31/(1+$C$6)^(D$8+1))) -> 0 | E33: 0 | F33: 0 | G33: 0 | H33: 0 | I33: 0 | J33: 0 | K33: =IF((K8=-1),0,+(K31/(1+$C$6)^(K$8))) -> 0 | L33: -211627.907 | M33: -88372.09302 | N33: -375840.9091 | O33: -88760.33058 | P33: 450026.296 | Q33: 614227.1703 | R33: 809867.6817 | S33: 937308.9609 | T33: 957860.9435 | U33: 864904.6829 | V33: 786276.9845 | W33: =IF((W8=-1),0,+(W31/(1+$C$6)^(W$8+1))) -> 649815.6896 | X33: =IF((X8=-1),0,+(X31/(1+$C$5)^X$8)) -> 1854000
B34: Without ESA Financial Support | C34: Free Cash Flow without ESA | D34: =+D28+D29+D30+D19 -> 0 | E34: 0 | F34: 0 | G34: 0 | H34: 0 | I34: 0 | J34: 0 | K34: 0 | L34: =+L28+L29+L30+L19 -> -423255.814 | M34: =+M28+M29+M30+M19 -> -176744.186 | N34: =+N28+N29+N30+N19 -> -413425 | O34: =+O28+O29+O30+O19 -> -107400 | P34: 598985 | Q34: 899290 | R34: 1304300 | S34: 1660500 | T34: 1866600 | U34: 1854000 | V34: 1854000 | W34: 1854000 | X34: 1854000
C35: Cumulative Free Cash Flow without ESA | D35: =+D34 -> 0 | E35: =+D35+E34 -> 0 | F35: =+E35+F34 -> 0 | G35: 0 | H35: 0 | I35: 0 | J35: 0 | K35: 0 | L35: -423255.814 | M35: -600000 | N35: -1013425 | O35: =+N35+O34 -> -1120825 | P35: -521840 | Q35: 377450 | R35: 1681750 | S35: 3342250 | T35: 5208850 | U35: 7062850 | V35: 8916850 | W35: 10770850 | X35: 12624850
C36: Discounted Cash Flow without ESA | D36: =IF((D8=-1),0,+(D34/(1+$C$6)^(D$8+1))) -> 0 | E36: 0 | F36: 0 | G36: 0 | H36: 0 | I36: 0 | J36: 0 | K36: =IF((K8=-1),0,+(K34/(1+$C$6)^(K$8))) -> 0 | L36: -423255.814 | M36: -176744.186 | N36: -375840.9091 | O36: -88760.33058 | P36: 450026.296 | Q36: 614227.1703 | R36: 809867.6817 | S36: 937308.9609 | T36: 957860.9435 | U36: 864904.6829 | V36: 786276.9845 | W36: =IF((W8=-1),0,+(W34/(1+$C$6)^(W$8+1))) -> 649815.6896 | X36: =IF((X8=-1),0,+(X34/(1+$C$5)^X$8)) -> 1854000
B46: Figure 6 Financial Indicators Graph
B49: With ESA: | C49: =CONCATENATE("Pay Back: at ",Z8) -> Pay Back: at year 4
C50: =CONCATENATE("IRR: ",TEXT(Z9,"##.#%")) -> IRR: 72.9%
C51: =CONCATENATE("NPV: ",TEXT(Z10," #,#" )) -> NPV: 2,258,457
B73: Without ESA: | C73: =CONCATENATE("Pay Back:at ",Z15) -> Pay Back:at year 4
C74: =CONCATENATE("IRR: ",TEXT(Z16,"##.#%")) -> IRR: 62.7%
C75: =CONCATENATE("NPV: ",TEXT(Z17," #,#" )) -> NPV: 2,170,085

Sheet Depreciation
B1: Depreciation Calculation
B3: This worksheet is used to calculate capital depreciation based on the data provided in the "III. Costs" worksheet.
B4: Straight line depreciation is calculated using the "Lifetime" defined in the "III-Costs" worksheet.
D7: Lifetime | E7: Depr. Rate
D8: =+'I.Input Data'!M96 -> 5 | E8: =1/D8 -> 0.2 | F8: =+'I.Input Data'!G34 -> 2024-01-01 | G8: Commercial Exploitation Phase
F9: 0 | G9: 1 | H9: 2 | I9: 3 | J9: 4 | K9: 5 | L9: 6 | M9: 7 | N9: 8 | O9: 9 | P9: 10 | Q9: =+P9+1 -> 11 | R9: =+Q9+1 -> 12 | S9: =+R9+1 -> 13 | T9: =+S9+1 -> 14 | U9: =+T9+1 -> 15
C10: =+'III. Costs'!C22 -> Total investment 5y | F10: =+'III. Costs'!N22 -> 0 | G10: =+'III. Costs'!O22 -> 0 | H10: =+'III. Costs'!P22 -> 0 | I10: =+'III. Costs'!Q22 -> 0 | J10: =+'III. Costs'!R22 -> 0 | K10: =+'III. Costs'!S22 -> 0 | L10: =+'III. Costs'!T22 -> 0 | M10: =+'III. Costs'!U22 -> 0 | N10: =+'III. Costs'!V22 -> 0 | O10: =+'III. Costs'!W22 -> 0 | P10: =+'III. Costs'!X22 -> 0
C11: Cumulative CAPEX (at Start of the Year) | F11: =+F10 -> 0 | G11: =+G10+F11 -> 0 | H11: =+G11+H10 -> 0 | I11: 0 | J11: 0 | K11: 0 | L11: 0 | M11: 0 | N11: 0 | O11: 0 | P11: 0 | Q11: 0 | R11: 0 | S11: 0 | T11: 0 | U11: 0
D12: =+F9 -> 0 | E12: =+F10 -> 0 | F12: =IF(F$9=$D12,$E12/$D$8,IF(F$9>=$D12+$D$8,0,IF(F$9<$D12,0,$E12/$D$8))) -> 0 | G12: 0 | H12: 0 | I12: 0 | J12: 0 | K12: 0 | L12: 0 | M12: 0 | N12: 0 | O12: 0 | P12: 0 | Q12: 0 | R12: 0 | S12: 0 | T12: 0 | U12: 0
D13: =+G9 -> 1 | E13: =+G10 -> 0 | F13: 0 | G13: 0 | H13: 0 | I13: 0 | J13: 0 | K13: 0 | L13: 0 | M13: 0 | N13: 0 | O13: 0 | P13: 0 | Q13: 0 | R13: 0 | S13: 0 | T13: 0 | U13: 0
D14: =+H9 -> 2 | E14: =+H10 -> 0 | F14: 0 | G14: 0 | H14: 0 | I14: 0 | J14: 0 | K14: 0 | L14: 0 | M14: 0 | N14: 0 | O14: 0 | P14: 0 | Q14: 0 | R14: 0 | S14: 0 | T14: 0 | U14: 0
D15: =+I9 -> 3 | E15: =+I10 -> 0 | F15: 0 | G15: 0 | H15: 0 | I15: 0 | J15: 0 | K15: 0 | L15: 0 | M15: 0 | N15: 0 | O15: 0 | P15: 0 | Q15: 0 | R15: 0 | S15: 0 | T15: 0 | U15: 0
D16: =+J9 -> 4 | E16: =+J10 -> 0 | F16: 0 | G16: 0 | H16: 0 | I16: 0 | J16: 0 | K16: 0 | L16: 0 | M16: 0 | N16: 0 | O16: 0 | P16: 0 | Q16: 0 | R16: 0 | S16: 0 | T16: 0 | U16: 0
D17: =+K9 -> 5 | E17: =+K10 -> 0 | F17: 0 | G17: 0 | H17: 0 | I17: 0 | J17: 0 | K17: 0 | L17: 0 | M17: 0 | N17: 0 | O17: 0 | P17: 0 | Q17: 0 | R17: 0 | S17: 0 | T17: 0 | U17: 0
D18: =+L9 -> 6 | E18: =+L10 -> 0 | F18: 0 | G18: 0 | H18: 0 | I18: 0 | J18: 0 | K18: 0 | L18: 0 | M18: 0 | N18: 0 | O18: 0 | P18: 0 | Q18: 0 | R18: 0 | S18: 0 | T18: 0 | U18: 0
D19: =+M9 -> 7 | E19: =+M10 -> 0 | F19: 0 | G19: 0 | H19: 0 | I19: 0 | J19: 0 | K19: 0 | L19: 0 | M19: 0 | N19: 0 | O19: 0 | P19: 0 | Q19: 0 | R19: 0 | S19: 0 | T19: 0 | U19: 0
D20: =+N9 -> 8 | E20: =+N10 -> 0 | F20: 0 | G20: 0 | H20: 0 | I20: 0 | J20: 0 | K20: 0 | L20: 0 | M20: 0 | N20: 0 | O20: 0 | P20: 0 | Q20: 0 | R20: 0 | S20: 0 | T20: 0 | U20: 0
D21: =+O9 -> 9 | E21: =+O10 -> 0 | F21: 0 | G21: 0 | H21: 0 | I21: 0 | J21: 0 | K21: 0 | L21: 0 | M21: 0 | N21: 0 | O21: 0 | P21: 0 | Q21: 0 | R21: 0 | S21: 0 | T21: 0 | U21: 0
D22: =+P9 -> 10 | E22: =+P10 -> 0 | F22: =IF(F$9=$D22,$E22/$D$8,IF(F$9>=$D22+$D$8,0,IF(F$9<$D22,0,$E22/$D$8))) -> 0 | G22: 0 | H22: 0 | I22: 0 | J22: 0 | K22: 0 | L22: 0 | M22: 0 | N22: 0 | O22: 0 | P22: 0 | Q22: 0 | R22: 0 | S22: 0 | T22: 0 | U22: 0
D23: =+Q9 -> 11 | E23: =+Q10 -> 0 | F23: 0 | G23: 0 | H23: 0 | I23: 0 | J23: 0 | K23: 0 | L23: 0 | M23: 0 | N23: 0 | O23: 0 | P23: 0 | Q23: 0 | R23: 0 | S23: 0 | T23: 0 | U23: 0
D24: =+R9 -> 12 | E24: =+R10 -> 0 | F24: 0 | G24: 0 | H24: 0 | I24: 0 | J24: 0 | K24: 0 | L24: 0 | M24: 0 | N24: 0 | O24: 0 | P24: 0 | Q24: 0 | R24: 0 | S24: 0 | T24: 0 | U24: 0
D25: =+S9 -> 13 | E25: =+S10 -> 0 | F25: 0 | G25: 0 | H25: 0 | I25: 0 | J25: 0 | K25: 0 | L25: 0 | M25: 0 | N25: 0 | O25: 0 | P25: 0 | Q25: 0 | R25: 0 | S25: 0 | T25: 0 | U25: 0
D26: =+T9 -> 14 | E26: =+T10 -> 0 | F26: 0 | G26: 0 | H26: 0 | I26: 0 | J26: 0 | K26: 0 | L26: 0 | M26: 0 | N26: 0 | O26: 0 | P26: 0 | Q26: 0 | R26: 0 | S26: 0 | T26: 0 | U26: 0
D27: =+U9 -> 15 | E27: =+U10 -> 0 | F27: 0 | G27: 0 | H27: 0 | I27: 0 | J27: 0 | K27: 0 | L27: 0 | M27: 0 | N27: 0 | O27: 0 | P27: 0 | Q27: 0 | R27: 0 | S27: 0 | T27: 0 | U27: 0
C28: Book Value (at End of the Year) | F28: =IF(F$9=$D28,$E28/$D$8,IF(F$9>=$D28+$D$8,0,IF(F$9<$D28,0,$E28/$D$8))) -> 0 | G28: =+G11-G29 -> 0 | H28: =+H11-H29 -> 0 | I28: 0 | J28: 0 | K28: 0 | L28: 0 | M28: 0 | N28: 0 | O28: 0 | P28: 0 | Q28: 0 | R28: 0 | S28: 0 | T28: 0 | U28: 0
C29: Cumulative Depreciation | G29: =+G30+F30 -> 0 | H29: =+H30+G29 -> 0 | I29: 0 | J29: 0 | K29: 0 | L29: 0 | M29: 0 | N29: 0 | O29: 0 | P29: 0 | Q29: 0 | R29: 0 | S29: 0 | T29: 0 | U29: 0
C30: Depreciation | F30: =SUM(F12:F29) -> 0 | G30: =SUM(G12:G27) -> 0 | H30: 0 | I30: 0 | J30: 0 | K30: 0 | L30: 0 | M30: 0 | N30: 0 | O30: 0 | P30: 0 | Q30: 0 | R30: 0 | S30: 0 | T30: 0 | U30: 0
D32: Lifetime | E32: Depr. Rate
D33: =+'I.Input Data'!M99 -> 7 | E33: =1/D33 -> 0.1428571429 | F33: =+'I.Input Data'!G34 -> 2024-01-01 | G33: Commercial Exploitation Phase
F34: 0 | G34: 1 | H34: 2 | I34: 3 | J34: 4 | K34: 5 | L34: 6 | M34: 7 | N34: 8 | O34: 9 | P34: 10 | Q34: =+P34+1 -> 11 | R34: =+Q34+1 -> 12 | S34: =+R34+1 -> 13 | T34: =+S34+1 -> 14 | U34: =+T34+1 -> 15
C35: =+'III. Costs'!C25 -> Total investment 7y | F35: =+'III. Costs'!N25 -> 100000 | G35: =+'III. Costs'!O25 -> 0 | H35: =+'III. Costs'!P25 -> 0 | I35: =+'III. Costs'!Q25 -> 0 | J35: =+'III. Costs'!R25 -> 0 | K35: =+'III. Costs'!S25 -> 0 | L35: =+'III. Costs'!T25 -> 0 | M35: =+'III. Costs'!U25 -> 0 | N35: =+'III. Costs'!V25 -> 0 | O35: =+'III. Costs'!W25 -> 0 | P35: =+'III. Costs'!X25 -> 0
C36: Cumulative CAPEX (at Start of the Year) | F36: =+F35 -> 100000 | G36: =+G35+F36 -> 100000 | H36: =+G36+H35 -> 100000 | I36: 100000 | J36: 100000 | K36: 100000 | L36: 100000 | M36: 100000 | N36: 100000 | O36: 100000 | P36: 100000 | Q36: 100000 | R36: 100000 | S36: 100000 | T36: 100000 | U36: 100000
D37: =+F34 -> 0 | E37: =+F36 -> 100000 | F37: =IF(F$34=$D37,$E37/$D$33,IF(F$34>=$D37+$D$33,0,IF(F$34<$D37,0,$E37/$D$33))) -> 14285.71429 | G37: 14285.71429 | H37: 14285.71429 | I37: 14285.71429 | J37: 14285.71429 | K37: 14285.71429 | L37: 14285.71429 | M37: 0 | N37: 0 | O37: 0 | P37: 0 | Q37: 0 | R37: 0 | S37: 0 | T37: 0 | U37: 0
D38: =+G34 -> 1 | E38: =+G35 -> 0 | F38: 0 | G38: 0 | H38: 0 | I38: 0 | J38: 0 | K38: 0 | L38: 0 | M38: 0 | N38: 0 | O38: 0 | P38: 0 | Q38: 0 | R38: 0 | S38: 0 | T38: 0 | U38: 0
D39: =+H34 -> 2 | E39: =+H35 -> 0 | F39: 0 | G39: 0 | H39: 0 | I39: 0 | J39: 0 | K39: 0 | L39: 0 | M39: 0 | N39: 0 | O39: 0 | P39: 0 | Q39: 0 | R39: 0 | S39: 0 | T39: 0 | U39: 0
D40: =+I34 -> 3 | E40: =+I35 -> 0 | F40: 0 | G40: 0 | H40: 0 | I40: 0 | J40: 0 | K40: 0 | L40: 0 | M40: 0 | N40: 0 | O40: 0 | P40: 0 | Q40: 0 | R40: 0 | S40: 0 | T40: 0 | U40: 0
D41: =+J34 -> 4 | E41: =+J35 -> 0 | F41: 0 | G41: 0 | H41: 0 | I41: 0 | J41: 0 | K41: 0 | L41: 0 | M41: 0 | N41: 0 | O41: 0 | P41: 0 | Q41: 0 | R41: 0 | S41: 0 | T41: 0 | U41: 0
D42: =+K34 -> 5 | E42: =+K35 -> 0 | F42: 0 | G42: 0 | H42: 0 | I42: 0 | J42: 0 | K42: 0 | L42: 0 | M42: 0 | N42: 0 | O42: 0 | P42: 0 | Q42: 0 | R42: 0 | S42: 0 | T42: 0 | U42: 0
D43: =+L34 -> 6 | E43: =+L35 -> 0 | F43: 0 | G43: 0 | H43: 0 | I43: 0 | J43: 0 | K43: 0 | L43: 0 | M43: 0 | N43: 0 | O43: 0 | P43: 0 | Q43: 0 | R43: 0 | S43: 0 | T43: 0 | U43: 0
D44: =+M34 -> 7 | E44: =+M35 -> 0 | F44: 0 | G44: 0 | H44: 0 | I44: 0 | J44: 0 | K44: 0 | L44: 0 | M44: 0 | N44: 0 | O44: 0 | P44: 0 | Q44: 0 | R44: 0 | S44: 0 | T44: 0 | U44: 0
D45: =+N34 -> 8 | E45: =+N35 -> 0 | F45: 0 | G45: 0 | H45: 0 | I45: 0 | J45: 0 | K45: 0 | L45: 0 | M45: 0 | N45: 0 | O45: 0 | P45: 0 | Q45: 0 | R45: 0 | S45: 0 | T45: 0 | U45: 0
D46: =+O34 -> 9 | E46: =+O35 -> 0 | F46: 0 | G46: 0 | H46: 0 | I46: 0 | J46: 0 | K46: 0 | L46: 0 | M46: 0 | N46: 0 | O46: 0 | P46: 0 | Q46: 0 | R46: 0 | S46: 0 | T46: 0 | U46: 0
D47: =+P34 -> 10 | E47: =+P35 -> 0 | F47: =IF(F$34=$D47,$E47/$D$33,IF(F$34>=$D47+$D$33,0,IF(F$34<$D47,0,$E47/$D$33))) -> 0 | G47: 0 | H47: 0 | I47: 0 | J47: 0 | K47: 0 | L47: 0 | M47: 0 | N47: 0 | O47: 0 | P47: 0 | Q47: 0 | R47: 0 | S47: 0 | T47: 0 | U47: 0
D48: =+Q34 -> 11 | E48: =+Q35 -> 0 | F48: 0 | G48: 0 | H48: 0 | I48: 0 | J48: 0 | K48: 0 | L48: 0 | M48: 0 | N48: 0 | O48: 0 | P48: 0 | Q48: 0 | R48: 0 | S48: 0 | T48: 0 | U48: 0
D49: =+R34 -> 12 | E49: =+R35 -> 0 | F49: 0 | G49: 0 | H49: 0 | I49: 0 | J49: 0 | K49: 0 | L49: 0 | M49: 0 | N49: 0 | O49: 0 | P49: 0 | Q49: 0 | R49: 0 | S49: 0 | T49: 0 | U49: 0
D50: =+S34 -> 13 | E50: =+S35 -> 0 | F50: 0 | G50: 0 | H50: 0 | I50: 0 | J50: 0 | K50: 0 | L50: 0 | M50: 0 | N50: 0 | O50: 0 | P50: 0 | Q50: 0 | R50: 0 | S50: 0 | T50: 0 | U50: 0
D51: =+T34 -> 14 | E51: =+T35 -> 0 | F51: 0 | G51: 0 | H51: 0 | I51: 0 | J51: 0 | K51: 0 | L51: 0 | M51: 0 | N51: 0 | O51: 0 | P51: 0 | Q51: 0 | R51: 0 | S51: 0 | T51: 0 | U51: 0
D52: =+U34 -> 15 | E52: =+U35 -> 0 | F52: 0 | G52: 0 | H52: 0 | I52: 0 | J52: 0 | K52: 0 | L52: 0 | M52: 0 | N52: 0 | O52: 0 | P52: 0 | Q52: 0 | R52: 0 | S52: 0 | T52: 0 | U52: 0
C53: Book Value (at End of the Year) | F53: =IF(F$9=$D53,$E53/$D$8,IF(F$9>=$D53+$D$8,0,IF(F$9<$D53,0,$E53/$D$8))) -> 0 | G53: =+G36-G54 -> 71428.57143 | H53: 57142.85714 | I53: 42857.14286 | J53: 28571.42857 | K53: 14285.71429 | L53: 0 | M53: 0 | N53: 0 | O53: 0 | P53: 0 | Q53: 0 | R53: 0 | S53: 0 | T53: 0 | U53: 0
C54: Cumulative Depreciation | G54: =+G55+F55 -> 28571.42857 | H54: =+H55+G54 -> 42857.14286 | I54: 57142.85714 | J54: 71428.57143 | K54: 85714.28571 | L54: 100000 | M54: 100000 | N54: 100000 | O54: 100000 | P54: 100000 | Q54: 100000 | R54: 100000 | S54: 100000 | T54: 100000 | U54: 100000
C55: Depreciation | F55: =SUM(F37:F52) -> 14285.71429 | G55: 14285.71429 | H55: 14285.71429 | I55: 14285.71429 | J55: 14285.71429 | K55: 14285.71429 | L55: 14285.71429 | M55: 0 | N55: 0 | O55: 0 | P55: 0 | Q55: 0 | R55: 0 | S55: 0 | T55: 0 | U55: 0
B61: TOTAL DEPRECIATION | F61: =+F55+F30 -> 14285.71429 | G61: 14285.71429 | H61: 14285.71429 | I61: 14285.71429 | J61: 14285.71429 | K61: 14285.71429 | L61: 14285.71429 | M61: 0 | N61: 0 | O61: 0 | P61: 0 | Q61: 0 | R61: 0 | S61: 0 | T61: 0 | U61: 0

Sheet SUPPORT
B1: D | C1: This worksheet is used to identify the range of years to be considered for the financial indicators
B2: E
B3: F
B4: G
B5: H
B6: I | H6: SME
B7: J | H7: Large
B8: K | H8: University
B9: L | H9: YES | I9: NO
B10: M | H10: NO | I10: YES
B11: N | H11: YES
B12: O
B13: P
B14: Q
B15: R
B16: S
B17: T
B18: U
B19: V
B20: W
B21: X
C22: Column position for Year 0 | D22: =MATCH(0,'IV. Profit&Loss + Cash Flow'!D8:X8) -> 10
C23: Column identification for Year 0 | D23: =INDEX($B$1:$B$21,$D$22) -> M
C24: Column identification for Year 1 | D24: =INDEX($B$1:$B$21,$D$22+1) -> N
C26: Year range | D26: =CONCATENATE($D$23,"8:X8") -> M8:X8
C28: Cumulative cash flow without ESA | D28: =CONCATENATE($D$23,"35:",$D$41,"35") -> M35:S35
C29: Free cash flow without ESA | D29: =CONCATENATE($D$23,"34:",$D$41,"34") -> M34:S34
C30: Free cash flow without ESA (excl. Yo) | D30: =CONCATENATE($D$24,"34:",$D$41,"34") -> N34:S34
C31: Yo cash flow without ESA | D31: =CONCATENATE($D$23,"34") -> M34
C33: Cumulative cash flow with ESA | D33: =CONCATENATE($D$23,"32:",$D$41,"32") -> M32:S32
C34: Free cash flow with ESA | D34: =CONCATENATE($D$23,"31:",$D$41,"31") -> M31:S31
C35: Free cash flow with ESA (excl. Yo) | D35: =CONCATENATE($D$24,"31:",$D$41,"31") -> N31:S31
C36: Yo cash flow with ESA | D36: =CONCATENATE($D$23,"31") -> M31
C38: Full duration in years (development + commercialisation) | D38: ='IV. Profit&Loss + Cash Flow'!N8+'I.Input Data'!J34 -> 7.002739726
C40: Column position for end of Commercial Phase | D40: =D22+D38-1 -> 16.00273973
C41: Column identification for end of Commercial Phase | D41: =INDEX($B$1:$B$21,$D$40) -> S

Sheet Change Log
A1: Version | B1: Date | C1: Notes
A2: 1.0 | B2: 2019-05-21 | C2: First version published
A3: 1.1 | B3: 2019-06-13 | C3: Updated tables numbering/ corrected graphs data input and format
A4: 1.2 | B4: 2019-07-09 | C4: Change in the conditional formatting of table 4 ; graphs format improved
A5: 2.0 | B5: 2019-10-09 | C5: Adaptation for InCubed+
A6: 2.1 | B6: 2021-07-14 | C6: Adaptation to Proposal Part 1. v.2.4
